bitfinex/quotes_SOLUSD_20230103
["timestamp","ask_amount","ask_price","bid_price","bid_amount"]
[1672742289247,87.8402,11.891,11.88,12.75]
[1672742289456,87.8402,11.891,11.876,20.0]
[1672742289457,24.6702,11.891,11.881,20.0]
[1672742289784,30.0,11.889,11.881,20.0]
[1672742289975,30.0,11.889,11.878,187.9972]
[1672742294494,30.0,11.889,11.879,2.943]
[1672742298425,30.0,11.889,11.879,32.943]
[1672742298729,93.18,11.889,11.88,20.0]
[1672742298948,30.0,11.889,11.88,20.0]
[1672742299146,53.8933,11.89,11.88,20.0]
[1672742300403,23.8933,11.89,11.88,32.81]
[1672742303989,23.8933,11.89,11.881,30.0]
[1672742304195,23.8933,11.89,11.882,20.0]
[1672742310303,23.8933,11.89,11.883,4.557]
[1672742313878,23.8933,11.89,11.882,27.795]
[1672742314831,23.8933,11.89,11.882,20.0]
[1672742315665,23.8933,11.89,11.883,7.795]
[1672742315872,23.8933,11.89,11.884,20.0]
[1672742316185,23.8933,11.89,11.882,27.796]
[1672742316506,23.8933,11.89,11.883,30.0]
[1672742316703,23.8933,11.89,11.884,20.0]
[1672742318061,23.8933,11.89,11.883,20.0]
[1672742330509,10.0,18.484,11.884,30.0]
[1672742330510,63.11,11.902,11.884,30.0]
[1672742330817,63.11,11.902,11.891,30.0]
[1672742330818,23.5118,11.898,11.891,30.0]
[1672742331012,23.5118,11.898,11.892,20.0]
[1672742331217,0.00035244,11.896,11.892,163.024619]
[1672742331444,0.00035244,11.896,11.893,42.58102115]
[1672742331656,0.00035244,11.896,11.894,20.0]
[1672742332188,0.00035244,11.896,11.893,30.0]
[1672742332379,0.00035244,11.896,11.894,20.0]
[1672742333014,0.00035244,11.896,11.894,32.58102115]
[1672742333341,164.2332,11.905,11.894,32.58102115]
[1672742333549,164.2332,11.905,11.895,30.0]
[1672742333863,164.2332,11.905,11.896,12.58102115]
[1672742334268,63.08,11.908,11.896,12.58102115]
[1672742334490,30.0,11.907,11.896,12.58102115]
[1672742334704,93.08,11.907,11.896,12.58102115]
[1672742335220,30.0,11.907,11.897,20.0]
[1672742335961,30.0,11.907,11.896,20.0]
[1672742336386,227.3132,11.908,11.896,20.0]
[1672742336700,227.3132,11.908,11.9,12.88]
[1672742336701,164.2332,11.908,11.9,12.88]
[1672742336919,117.3136,11.908,11.9,12.88]
[1672742337109,117.3136,11.908,11.901,32.58102115]
[1672742337740,117.3136,11.908,11.901,20.0]
[1672742339444,117.3136,11.908,11.901,89.93678647]
[1672742339627,117.3136,11.908,11.901,20.0]
[1672742341634,117.3136,11.908,11.902,58.2531324]
[1672742341859,117.3136,11.908,11.902,70.83415355]
[1672742342073,86.1639,11.91,11.903,20.0]
[1672742342277,63.07,11.91,11.903,78.2531324]
[1672742342593,63.07,11.91,11.904,58.2531324]
[1672742342917,63.06,11.911,11.905,20.0]
[1672742344050,30.0,11.91,11.905,20.0]
[1672742344261,63.07,11.909,11.905,20.0]
[1672742345317,63.06,11.911,11.905,20.0]
[1672742345836,30.0,11.91,11.905,20.0]
[1672742346045,63.07,11.909,11.905,20.0]
[1672742346589,93.07,11.91,11.905,20.0]
[1672742349424,93.07,11.91,11.902,20.0]
[1672742350165,93.07,11.91,11.901,20.0]
[1672742350368,117.1978,11.91,11.901,20.0]
[1672742352046,54.1278,11.91,11.901,20.0]
[1672742353932,30.0,11.908,11.901,20.0]
[1672742359182,30.0,11.906,11.901,20.0]
[1672742359388,30.0,11.908,11.901,20.0]
[1672742359604,23.4156,11.909,11.901,20.0]
[1672742360981,30.0,11.908,11.901,20.0]
[1672742363634,93.08,11.908,11.885,30.0]
[1672742363828,30.0,11.906,11.892,43.5853]
[1672742364017,30.0,11.906,11.892,56.16632115]
[1672742364227,30.0,11.906,11.893,12.58102115]
[1672742364438,30.0,11.904,11.893,12.58102115]
[1672742365202,30.0,11.904,11.894,30.0]
[1672742365203,24.3773,11.904,11.894,30.0]
[1672742365380,54.3773,11.904,11.893,12.58102115]
[1672742365592,54.3773,11.904,11.894,20.0]
[1672742366875,54.3773,11.904,11.894,32.58102115]
[1672742368345,24.3773,11.904,11.894,32.58102115]
[1672742368875,63.08,11.908,11.894,32.58102115]
[1672742369115,22.6201,11.91,11.895,24.7268]
[1672742369416,22.6201,11.91,11.896,213.2847]
[1672742369611,22.6201,11.91,11.897,20.0]
[1672742369823,22.6201,11.91,11.898,24.7268]
[1672742370041,52.6201,11.91,11.898,37.30782115]
[1672742370253,52.6201,11.91,11.899,32.58102115]
[1672742370576,22.6201,11.91,11.9,42.58102115]
[1672742370975,22.6201,11.91,11.901,20.0]
[1672742371397,22.6201,11.91,11.901,32.58102115]
[1672742371619,22.6201,11.91,11.902,12.58102115]
[1672742371827,22.6201,11.91,11.903,20.0]
[1672742372365,22.6201,11.91,11.903,32.58102115]
[1672742372566,22.6107,11.911,11.903,32.58102115]
[1672742373699,22.6107,11.911,11.903,20.0]
[1672742373933,22.6107,11.911,11.902,20.0]
[1672742374145,46.3933,11.911,11.903,30.0]
[1672742374355,46.3933,11.911,11.904,20.0]
[1672742376129,43.85910425,11.929,11.905,30.0]
[1672742376336,0.45,11.929,11.911,12.58102115]
[1672742376553,0.45,11.929,11.912,20.0]
[1672742376966,0.45,11.929,11.913,175.31277648]
[1672742377182,0.45,11.929,11.914,20.0]
[1672742377389,0.45,11.929,11.915,30.0]
[1672742377610,65.3665973,11.928,11.916,20.0]
[1672742377813,30.0,11.927,11.916,20.0]
[1672742378238,30.0,11.927,11.914,50.0]
[1672742378443,143.3314,11.927,11.914,20.0]
[1672742379071,189.1024,11.927,11.914,20.0]
[1672742379279,159.1024,11.927,11.914,20.0]
[1672742379598,159.1024,11.927,11.915,78.51369685]
[1672742379815,159.1024,11.927,11.916,20.0]
[1672742381079,159.1024,11.927,11.917,30.0]
[1672742381286,159.1024,11.927,11.916,90.64741333]
[1672742381489,159.1024,11.927,11.918,12.65987586]
[1672742381703,159.1024,11.927,11.917,121.57171395]
[1672742382767,159.1024,11.927,11.917,57.98233747]
[1672742382973,159.1024,11.927,11.917,70.64221333]
[1672742383288,159.1024,11.927,11.918,30.0]
[1672742383480,159.1024,11.927,11.917,134.23158981]
[1672742383686,159.1024,11.927,11.919,63.58937648]
[1672742383898,45.771,11.927,11.919,63.58937648]
[1672742384112,45.771,11.927,11.919,76.24925234]
[1672742384432,45.771,11.927,11.919,134.23158981]
[1672742384878,108.751,11.927,11.919,121.57171395]
[1672742385270,45.771,11.927,11.919,121.57171395]
[1672742392531,45.771,11.927,11.919,63.58937648]
[1672742392956,45.771,11.927,11.916,77.98233747]
[1672742393794,45.771,11.927,11.917,30.0]
[1672742396101,45.771,11.927,11.917,42.65987586]
[1672742396636,45.771,11.927,11.917,30.0]
[1672742396846,45.771,11.927,11.917,42.65987586]
[1672742397681,45.771,11.927,11.917,12.65987586]
[1672742398084,75.771,11.927,11.917,12.65987586]
[1672742399381,45.771,11.927,11.917,12.65987586]
[1672742402002,45.771,11.927,11.918,30.0]
[1672742402201,2.3965973,11.928,11.92,12.78]
[1672742402420,2.3965973,11.928,11.921,20.0]
[1672742402611,2.3965973,11.928,11.922,30.0]
[1672742402823,2.3965973,11.928,11.923,20.0]
[1672742404403,2.3965973,11.928,11.923,32.65987586]
[1672742405564,2.3965973,11.928,11.919,110.628]
[1672742405760,62.98,11.927,11.918,12.65987586]
[1672742405970,89.6949973,11.928,11.918,12.65987586]
[1672742406928,30.0,11.927,11.918,12.65987586]
[1672742407982,30.0,11.927,11.913,311.68691395]
[1672742408196,185.2952,11.927,11.915,12.65987586]
[1672742409032,155.2952,11.927,11.916,30.0]
[1672742409234,30.0,11.926,11.915,12.65987586]
[1672742410606,30.0,11.926,11.913,311.68691395]
[1672742410920,195.2192,11.926,11.914,20.0]
[1672742411749,30.0,11.924,11.914,20.0]
[1672742414085,30.0,11.922,11.914,20.0]
[1672742414809,30.0,11.922,11.9,64.15]
[1672742415019,30.0,11.919,11.902,193.1378]
[1672742415224,226.5819,11.918,11.905,12.65987586]
[1672742415535,30.0,11.917,11.906,7.78]
[1672742415765,30.0,11.917,11.903,7.782]
[1672742415954,30.0,11.915,11.903,7.782]
[1672742416166,115.6684,11.916,11.903,20.44187586]
[1672742416503,115.6684,11.916,11.904,30.0]
[1672742416694,115.6684,11.916,11.905,7.781]
[1672742416902,115.6684,11.916,11.905,20.44087586]
[1672742417234,115.6684,11.916,11.906,12.65987586]
[1672742421026,115.6684,11.916,11.907,30.0]
[1672742421419,115.6684,11.916,11.908,12.65987586]
[1672742422787,63.02,11.92,11.908,12.65987586]
[1672742423017,224.8732,11.922,11.91,12.8]
[1672742423214,224.8732,11.922,11.911,20.0]
[1672742423215,161.8632,11.922,11.911,20.0]
[1672742423423,161.8632,11.922,11.911,32.65987586]
[1672742423765,161.8632,11.922,11.912,12.65987586]
[1672742423946,161.8632,11.922,11.913,20.0]
[1672742426472,161.8632,11.922,11.914,12.65987586]
[1672742426681,161.8632,11.922,11.915,20.0]
[1672742426893,62.99,11.925,11.915,20.0]
[1672742427107,62.99,11.925,11.916,12.65987586]
[1672742427323,110.4262,11.926,11.916,12.65987586]
[1672742427768,30.0,11.925,11.916,12.65987586]
[1672742428083,2.3965973,11.928,11.92,12.81]
[1672742428402,2.3965973,11.928,11.921,20.0]
[1672742430923,2.3965973,11.928,11.922,30.0]
[1672742431243,2.3965973,11.928,11.923,20.0]
[1672742431435,2.3965973,11.928,11.923,32.65987586]
[1672742432295,2.3965973,11.928,11.924,30.0]
[1672742432491,2.3965973,11.928,11.925,20.0]
[1672742432703,2.3965973,11.928,11.925,32.65987586]
[1672742433119,2.3965973,11.928,11.926,12.65987586]
[1672742433330,2.3965973,11.928,11.925,20.0]
[1672742433539,2.3965973,11.928,11.923,12.65987586]
[1672742433751,2.3965973,11.928,11.924,20.0]
[1672742434073,2.3965973,11.928,11.925,12.65987586]
[1672742435124,2.3965973,11.928,11.926,50.0]
[1672742435538,2.3965973,11.928,11.926,32.65987586]
[1672742436685,0.45,11.929,11.921,207.68033019]
[1672742436896,0.45,11.929,11.922,193.89683747]
[1672742437322,0.45,11.929,11.922,173.89683747]
[1672742437740,0.45,11.929,11.922,186.55671333]
[1672742437958,0.45,11.929,11.922,115.9145]
[1672742440080,0.45,11.929,11.923,20.0]
[1672742444491,0.45,11.929,11.924,5.371]
[1672742444684,0.45,11.929,11.925,20.0]
[1672742450688,0.45,11.929,11.926,146.43702637]
[1672742450904,0.45,11.929,11.925,20.0]
[1672742452560,0.45,11.929,11.926,12.65987586]
[1672742454665,0.45,11.929,11.925,20.0]
[1672742456469,30.0,11.927,11.923,12.65987586]
[1672742456657,62.98,11.926,11.911,119.0719]
[1672742456872,30.0,11.925,11.912,20.0]
[1672742457412,30.0,11.923,11.911,131.73177586]
[1672742458545,30.0,11.923,11.912,20.0]
[1672742461196,30.0,11.923,11.9,64.1]
[1672742461403,12.81,11.92,11.901,132.611]
[1672742461601,30.0,11.918,11.901,125.27087586]
[1672742461935,177.4097,11.917,11.902,12.65987586]
[1672742462241,30.0,11.916,11.902,12.65987586]
[1672742463069,144.3797,11.916,11.902,12.65987586]
[1672742464434,144.3797,11.916,11.901,112.611]
[1672742464969,30.0,11.914,11.901,112.611]
[1672742466027,30.0,11.914,11.902,42.65987586]
[1672742466451,30.0,11.914,11.903,32.65987586]
[1672742468129,30.0,11.914,11.903,20.0]
[1672742468340,30.0,11.914,11.902,20.0]
[1672742470219,30.0,11.914,11.903,12.65987586]
[1672742470529,30.0,11.914,11.904,20.0]
[1672742473180,30.0,11.914,11.903,20.0]
[1672742474099,30.0,11.914,11.903,32.65987586]
[1672742474964,30.0,11.914,11.903,20.0]
[1672742475176,30.0,11.914,11.904,5.38]
[1672742475374,30.0,11.914,11.905,20.0]
[1672742477469,93.05,11.914,11.905,20.0]
[1672742478093,93.05,11.914,11.903,20.0]
[1672742485779,116.1092,11.914,11.903,20.0]
[1672742492207,24.8335,11.924,11.903,32.65987586]
[1672742492402,30.0,11.921,11.905,30.0]
[1672742492618,30.0,11.921,11.91,12.76]
[1672742493160,30.0,11.921,11.911,100.94590187]
[1672742493555,30.0,11.921,11.912,80.94590187]
[1672742493892,30.0,11.921,11.913,20.0]
[1672742494607,30.0,11.921,11.914,12.65987586]
[1672742494816,30.0,11.921,11.915,20.0]
[1672742496307,22.627,11.922,11.915,20.0]
[1672742496522,22.627,11.922,11.915,100.94590187]
[1672742496712,22.627,11.922,11.915,152.32201911]
[1672742497868,22.627,11.922,11.915,100.94590187]
[1672742499037,22.627,11.922,11.915,88.28602601]
[1672742503140,52.627,11.922,11.915,20.0]
[1672742503456,52.627,11.922,11.913,20.0]
[1672742510366,22.627,11.922,11.913,88.27694335]
[1672742510901,52.627,11.922,11.913,88.27694335]
[1672742512693,22.627,11.922,11.913,88.27694335]
[1672742513324,22.627,11.922,11.914,30.0]
[1672742513538,22.627,11.922,11.915,20.0]
[1672742513751,22.627,11.922,11.915,152.31293645]
[1672742514064,22.627,11.922,11.916,68.27694335]
[1672742517306,22.627,11.922,11.915,20.0]
[1672742517512,22.627,11.922,11.914,20.0]
[1672742517513,52.627,11.922,11.914,20.0]
[1672742518391,22.627,11.922,11.914,20.0]
[1672742520466,22.627,11.922,11.914,88.27694335]
[1672742522493,30.0,11.921,11.914,88.27694335]
[1672742524164,22.627,11.922,11.914,88.27694335]
[1672742524381,22.627,11.922,11.914,100.93681921]
[1672742524591,22.627,11.922,11.914,88.27694335]
[1672742525852,52.627,11.922,11.914,88.27694335]
[1672742527947,30.0,11.921,11.914,88.27694335]
[1672742529529,30.0,11.921,11.914,20.0]
[1672742530362,22.627,11.922,11.914,20.0]
[1672742530767,52.627,11.922,11.914,20.0]
[1672742531724,30.0,11.921,11.914,20.0]
[1672742536344,22.627,11.922,11.914,20.0]
[1672742537307,52.627,11.922,11.914,20.0]
[1672742539297,30.0,11.921,11.914,20.0]
[1672742543712,22.627,11.922,11.914,20.0]
[1672742544661,52.627,11.922,11.914,20.0]
[1672742546023,30.0,11.921,11.914,20.0]
[1672742553909,52.627,11.922,11.914,20.0]
[1672742556012,22.627,11.922,11.914,20.0]
[1672742556412,52.627,11.922,11.914,20.0]
[1672742558201,30.0,11.921,11.914,20.0]
[1672742563466,22.627,11.922,11.914,20.0]
[1672742563681,22.627,11.922,11.914,79.17694335]
[1672742564525,52.627,11.922,11.914,79.17694335]
[1672742571157,22.627,11.922,11.914,91.83681921]
[1672742571575,22.627,11.922,11.914,79.17694335]
[1672742572832,52.627,11.922,11.914,79.17694335]
[1672742583365,22.627,11.922,11.914,79.17694335]
[1672742586096,52.627,11.922,11.914,79.17694335]
[1672742590315,22.627,11.922,11.914,79.17694335]
[1672742591263,22.627,11.922,11.915,54.03761001]
[1672742591481,22.627,11.922,11.916,20.0]
[1672742594289,52.627,11.922,11.916,20.0]
[1672742594714,52.627,11.922,11.914,20.0]
[1672742597334,22.627,11.922,11.914,20.0]
[1672742597776,52.627,11.922,11.914,20.0]
[1672742606098,22.627,11.922,11.914,20.0]
[1672742606617,52.627,11.922,11.914,20.0]
[1672742608102,30.0,11.921,11.914,20.0]
[1672742613990,52.627,11.922,11.914,20.0]
[1672742618947,30.0,11.921,11.914,20.0]
[1672742635145,22.627,11.922,11.914,20.0]
[1672742635550,52.627,11.922,11.914,20.0]
[1672742640398,22.627,11.922,11.914,32.65987586]
[1672742641755,22.627,11.922,11.914,86.69748587]
[1672742643958,52.627,11.922,11.914,74.03761001]
[1672742645219,22.627,11.922,11.914,74.03761001]
[1672742647529,22.627,11.922,11.914,86.69748587]
[1672742648804,0.45,11.929,11.914,86.69748587]
[1672742649017,0.45,11.929,11.92,12.8]
[1672742649229,0.45,11.929,11.922,30.0]
[1672742649419,0.45,11.929,11.923,20.0]
[1672742649627,0.45,11.929,11.923,93.26369515]
[1672742649840,0.45,11.929,11.924,73.26369515]
[1672742650052,0.45,11.929,11.925,20.0]
[1672742652051,0.45,11.929,11.924,20.0]
[1672742652473,0.45,11.929,11.925,60.60381929]
[1672742652698,0.45,11.929,11.926,20.0]
[1672742653111,0.45,11.929,11.927,88.44758339]
[1672742653430,0.45,11.929,11.927,60.60381929]
[1672742654057,0.45,11.929,11.926,20.0]
[1672742654276,0.45,11.929,11.925,20.0]
[1672742655750,0.45,11.929,11.925,80.60381929]
[1672742658167,0.45,11.929,11.925,20.0]
[1672742662032,0.45,11.929,11.925,32.65987586]
[1672742662563,0.45,11.929,11.925,20.0]
[1672742663526,0.45,11.929,11.926,30.0]
[1672742663963,0.45,11.929,11.927,73.26369515]
[1672742664134,46.3284,11.942,11.928,50.0]
[1672742664350,46.3284,11.942,11.93,12.81]
[1672742664556,46.3284,11.942,11.932,30.0]
[1672742664760,45.8284,11.942,11.932,30.0]
[1672742664986,45.8284,11.942,11.933,20.0]
[1672742665191,45.8284,11.942,11.934,30.0]
[1672742665413,23.7037,11.942,11.935,20.0]
[1672742665611,23.7037,11.942,11.935,32.65987586]
[1672742665818,23.7037,11.942,11.936,30.0]
[1672742666026,23.7037,11.942,11.936,103.26369515]
[1672742666236,23.7037,11.942,11.937,73.26369515]
[1672742666653,23.7037,11.942,11.938,103.26369515]
[1672742666881,141.1403,11.943,11.938,156.53067908]
[1672742667205,141.1403,11.943,11.939,73.26369515]
[1672742667386,108.4869001,11.953,11.946,4.42589156]
[1672742667603,45.6469001,11.953,11.946,4.42589156]
[1672742667826,45.6469001,11.953,11.947,60.15778972]
[1672742668674,45.6469001,11.953,11.944,20.0]
[1672742668883,45.6469001,11.953,11.943,20.0]
[1672742670244,45.6469001,11.953,11.942,166.9523]
[1672742670245,92.85,11.952,11.942,119.9736]
[1672742670469,12.75,11.95,11.931,49.3111]
[1672742670672,30.0,11.948,11.931,169.2847]
[1672742670898,30.0,11.946,11.932,162.335]
[1672742671107,62.88,11.945,11.932,162.335]
[1672742671315,30.0,11.944,11.932,162.335]
[1672742671524,30.0,11.942,11.932,162.335]
[1672742671837,30.0,11.942,11.932,113.0239]
[1672742672053,12.75,11.94,11.927,399.73702637]
[1672742672372,30.0,11.938,11.923,113.0239]
[1672742672578,62.92,11.937,11.923,113.0239]
[1672742672792,62.92,11.937,11.924,30.0]
[1672742673098,30.0,11.936,11.923,113.0239]
[1672742673627,62.93,11.935,11.923,113.0239]
[1672742674037,30.0,11.934,11.923,113.0239]
[1672742674780,62.93,11.935,11.924,30.0]
[1672742675000,135.5192,11.938,11.924,429.73702637]
[1672742675242,72.5992,11.938,11.924,429.73702637]
[1672742676341,30.0,11.937,11.924,429.73702637]
[1672742676661,72.5992,11.938,11.926,30.0]
[1672742676875,72.5992,11.938,11.927,5.369]
[1672742678671,72.5992,11.938,11.927,18.02887586]
[1672742678997,72.5992,11.938,11.927,5.369]
[1672742679518,30.0,11.937,11.927,5.369]
[1672742681605,62.93,11.936,11.927,5.369]
[1672742681935,30.0,11.935,11.927,5.369]
[1672742683713,30.0,11.935,11.925,20.0]
[1672742685404,30.0,11.933,11.925,20.0]
[1672742690666,46.3891,11.936,11.925,32.65987586]
[1672742692852,46.3891,11.936,11.925,20.0]
[1672742697089,30.0,11.935,11.925,20.0]
[1672742697277,92.93,11.935,11.925,20.0]
[1672742702022,20.0,11.934,11.91,12.88]
[1672742702233,20.0,11.934,11.913,155.9534]
[1672742702234,12.78,11.93,11.913,155.9534]
[1672742702433,30.0,11.928,11.914,129.7194]
[1672742702636,62.98,11.927,11.914,129.7194]
[1672742702847,30.0,11.926,11.914,129.7194]
[1672742703064,30.0,11.926,11.914,109.7194]
[1672742703065,62.99,11.925,11.914,109.7194]
[1672742703282,30.0,11.926,11.914,109.7194]
[1672742705807,30.0,11.926,11.915,20.0]
[1672742706535,30.0,11.926,11.915,25.338]
[1672742710313,30.0,11.926,11.915,142.143]
[1672742713482,30.0,11.926,11.892,140.69720801]
[1672742713483,63.77,11.92,11.892,140.69720801]
[1672742713689,63.02,11.919,11.903,113.0776]
[1672742713888,110.0353,11.919,11.904,113.0776]
[1672742714097,30.0,11.917,11.897,30.0]
[1672742714417,30.0,11.917,11.892,140.69720801]
[1672742714418,63.82,11.91,11.888,149.77258398]
[1672742714636,63.07,11.909,11.888,149.77258398]
[1672742714848,63.07,11.909,11.891,143.76946682]
[1672742715041,63.07,11.909,11.89,12.78]
[1672742715042,30.0,11.908,11.892,146.04520801]
[1672742715251,30.0,11.906,11.892,146.04520801]
[1672742716414,30.0,11.906,11.893,20.0]
[1672742716627,30.0,11.906,11.892,5.348]
[1672742716954,82.91336873,11.906,11.892,5.348]
[1672742717146,30.0,11.904,11.892,5.348]
[1672742718509,30.0,11.913,11.893,30.0]
[1672742718723,30.0,11.913,11.893,42.65987586]
[1672742718950,30.0,11.913,11.894,12.65987586]
[1672742719144,30.0,11.913,11.895,5.347]
[1672742719361,30.0,11.913,11.896,30.0]
[1672742719572,165.1884,11.917,11.9,12.78]
[1672742719993,165.1884,11.917,11.902,30.0]
[1672742720206,165.1884,11.917,11.903,20.0]
[1672742720634,102.1584,11.917,11.904,12.65987586]
[1672742721057,102.1584,11.917,11.905,20.0]
[1672742721489,102.1584,11.917,11.905,32.65987586]
[1672742722529,102.1584,11.917,11.905,20.0]
[1672742722739,102.1584,11.917,11.903,32.65987586]
[1672742722952,102.1584,11.917,11.904,5.343]
[1672742723280,102.1584,11.917,11.905,20.0]
[1672742723885,72.1584,11.917,11.905,20.0]
[1672742724095,72.1584,11.917,11.905,32.65987586]
[1672742724307,63.0,11.922,11.906,30.0]
[1672742724519,30.0,11.924,11.906,30.0]
[1672742724728,30.0,11.924,11.907,32.65987586]
[1672742724943,30.0,11.924,11.907,12.65987586]
[1672742725158,30.0,11.924,11.908,20.0]
[1672742725568,12.76,11.92,11.905,108.8424]
[1672742725784,30.0,11.918,11.906,20.0]
[1672742725992,63.03,11.917,11.905,108.8424]
[1672742726308,30.0,11.916,11.905,108.8424]
[1672742726537,30.0,11.914,11.905,108.8424]
[1672742726724,30.0,11.914,11.904,5.343]
[1672742727139,30.0,11.914,11.905,20.0]
[1672742731587,30.0,11.912,11.905,20.0]
[1672742731796,30.0,11.91,11.905,20.0]
[1672742737899,30.0,11.912,11.905,20.0]
[1672742743283,63.04,11.915,11.905,20.0]
[1672742743485,134.967,11.917,11.905,20.0]
[1672742743679,71.937,11.917,11.906,296.36081343]
[1672742743883,71.937,11.917,11.907,283.70093757]
[1672742745903,30.0,11.916,11.907,283.70093757]
[1672742747476,30.0,11.916,11.905,20.0]
[1672742748214,30.0,11.916,11.905,32.65987586]
[1672742748734,30.0,11.916,11.905,20.0]
[1672742757879,30.0,11.914,11.905,20.0]
[1672742758305,63.05,11.913,11.904,5.343]
[1672742758512,30.0,11.912,11.904,5.343]
[1672742758714,30.0,11.91,11.904,5.343]
[1672742758927,30.0,11.908,11.904,5.343]
[1672742766413,63.07,11.909,11.904,5.343]
[1672742768494,30.0,11.91,11.904,5.343]
[1672742768828,63.06,11.911,11.904,5.343]
[1672742769043,30.0,11.912,11.904,5.343]
[1672742769229,20.0,11.911,11.904,5.343]
[1672742770187,30.0,11.91,11.904,5.343]
[1672742770818,93.07,11.91,11.904,5.343]
[1672742775037,150.92436905,11.91,11.904,5.343]
[1672742776079,163.73436905,11.91,11.904,5.343]
[1672742778377,30.0,11.908,11.904,5.343]
[1672742778590,93.08,11.908,11.898,109.2776]
[1672742778813,193.22903281,11.908,11.898,109.2776]
[1672742779960,255.77070167,11.908,11.898,109.2776]
[1672742781647,213.47603791,11.908,11.898,109.2776]
[1672742781858,150.93436905,11.908,11.898,109.2776]
[1672742782064,87.85436905,11.908,11.898,109.2776]
[1672742784171,130.14903281,11.908,11.898,109.2776]
[1672742784386,192.69070167,11.908,11.898,109.2776]
[1672742784601,30.0,11.908,11.898,109.2776]
[1672742785857,47.4767,11.909,11.898,109.2776]
[1672742787856,47.4767,11.909,11.9,12.86]
[1672742789014,117.3431,11.91,11.902,30.0]
[1672742789228,48.0226,11.917,11.903,3.516]
[1672742789438,216.2236,11.916,11.903,23.516]
[1672742789976,216.2236,11.916,11.903,141.8833]
[1672742794061,216.2236,11.916,11.903,154.54317586]
[1672742794697,216.2236,11.916,11.903,141.8833]
[1672742794906,216.2236,11.916,11.903,138.3673]
[1672742804157,332.417102,11.916,11.903,118.3673]
[1672742804352,30.0,11.913,11.903,118.3673]
[1672742804564,20.0,11.912,11.895,47.571]
[1672742804887,111.90709709,11.912,11.895,157.4291]
[1672742805100,30.0,11.911,11.895,157.4291]
[1672742805420,78.5941,11.911,11.896,157.4291]
[1672742805611,167.976,11.91,11.896,157.4291]
[1672742805826,30.0,11.909,11.896,157.4291]
[1672742806152,78.5941,11.909,11.897,109.8581]
[1672742813508,30.0,11.907,11.897,109.8581]
[1672742813925,169.48362614,11.906,11.897,109.8581]
[1672742814259,30.0,11.905,11.897,109.8581]
[1672742821706,30.0,11.906,11.897,109.8581]
[1672742822655,45.3411,11.907,11.897,109.8581]
[1672742824557,30.0,11.906,11.897,109.8581]
[1672742826226,30.0,11.906,11.897,109.7852596]
[1672742826969,75.3411,11.907,11.897,109.7852596]
[1672742827796,45.3411,11.907,11.897,109.7852596]
[1672742829918,30.0,11.922,11.9,64.33]